Cogmind - Beta 16 @@@ ROGUE MODE // 2025.11.18 @ 21:32:42 // Winter2019/RPGLIKE Player: Jaegerpls Result: Destroyed by Lightning with EMDS Performance ------------- Evolutions (4) 2000 Regions Visited (9) 1800 Robots Destroyed (132) 660 Value Destroyed (5222) 5222 Prototype IDs (45) 900 Alien Tech Used (0) 0 Bonus (2313) 2313 TOTAL SCORE: 12895 Bonus ------- High Alert Combat Kills 335 Follower Combat Kills 678 Network Hubs Disabled 200 Registered with UFD 300 Met Optimus in HQ 500 Built Enhanced Grunts 300 A7 Reached Mainframe 300 Friendly Fire -300 Cogmind --------- Core Integrity 0/1400 Matter 350/350 Energy 476/480 System Corruption 30% Temperature Cool (3) Movement Flying (80) Ox1 Location -6/Hub_04(d) Parts ------- > --- POWER (3) -------- Fission Core Light Fission Core Light Fission Core > --- PROPULSION (5) --- VTOL Module Flightbrick > --- UTILITY (8+3) ---- Advanced Heat Sink Advanced Heat Sink Advanced Weight Redist. System (+) Advanced Sensor Array Improved Signal Interpreter Advanced Terrain Scanner Improved Targeting Computer Improved Particle Charger (fused) (+) Improved Hacking Suite A0-MCA's Component Scanner (+) > --- WEAPON (4) ------- Heavy Beamcaster Heavy Beamcaster Heavy Beamcaster Heavy Plasma Cannon > --- INVENTORY (2) ---- Heavy Beamcaster Peak State ------------ > --- POWER ------------ Fission Core Light Fission Core Light Fission Core > --- PROPULSION ------- VTOL Module Flightbrick > --- UTILITY ---------- Advanced Heat Sink Advanced Heat Sink Advanced Weight Redist. System Advanced Sensor Array Improved Signal Interpreter Advanced Terrain Scanner Improved Targeting Computer Improved Particle Charger Improved Light Armor Plating Improved Hacking Suite A0-MCA's Component Scanner > --- WEAPON ----------- Heavy Beamcaster Heavy Beamcaster Heavy Beamcaster Heavy Plasma Cannon > --- INVENTORY -------- Heavy Beamcaster [Rating: 126] Favorites ----------- Power Light Nuclear Core Engine Light Ion Engine Power Core Light Nuclear Core Propulsion Light Treads Treads Light Treads Wheel Compact Wheel Flight Unit Flightbrick Utility Improved Targeting Computer Device Improved Terrain Scanner Storage Humpback Processor Improved Targeting Computer Hackware Hacking Suite Protection Medium Armor Plating Weapon Heavy EM Pulse Gun Energy Gun Heavy EM Pulse Gun Energy Cannon Heavy Plasma Cannon Ballistic Gun Assault Rifle Ballistic Cannon Antimatter Cannon Piercing Weapon Makeshift Spear Build | -11 -10 -10 -9 -9 -6 -6 -6 -6 -6 ------- Run | Yrd Mat Sub Rec Scr Fac Ext Cet Arc Hub Slots Evolved 16 | 4 2 2 2 1 3 1 . . 1 Power 2 | . . 1 . . 1 . . . . Propulsion 4 | 1 . . . 1 1 1 . . . Utility 7 | 1 2 1 1 . 1 . . . 1 Weapon 3 | 2 . . 1 . . . . . . Parts Attached 68 | 8 9 7 6 7 22 9 . . . Power 8 | 1 1 . 1 . 5 . . . . Engine 3 | 1 . . 1 . 1 . . . . Core 5 | . 1 . . . 4 . . . . Reactor . | . . . . . . . . . . Propulsion 13 | 2 . 2 3 4 1 1 . . . Treads 3 | 2 . 1 . . . . . . . Leg . | . . . . . . . . . . Wheel 8 | . . 1 3 4 . . . . . Hover . | . . . . . . . . . . Flight 2 | . . . . . 1 1 . . . Utility 25 | 2 4 3 1 2 10 3 . . . Device 12 | 2 2 . . . 6 2 . . . Storage 1 | . . 1 . . . . . . . Processor 5 | . 1 1 . 1 2 . . . . Hackware 2 | . . . . 1 . 1 . . . Protection 5 | . 1 1 1 . 2 . . . . Artifact . | . . . . . . . . . . Weapon 22 | 3 4 2 1 1 6 5 . . . Energy Gun 13 | 1 4 . 1 1 2 4 . . . Energy Cannon 1 | . . . . . . 1 . . . Ballistic Gun 3 | 2 . 1 . . . . . . . Ballistic Cannon 4 | . . . . . 4 . . . . Launcher . | . . . . . . . . . . Special Weapon . | . . . . . . . . . . Impact Weapon . | . . . . . . . . . . Slashing Weapon . | . . . . . . . . . . Piercing Weapon 1 | . . 1 . . . . . . . Special Melee Weapon . | . . . . . . . . . . Unidentified Prototypes . | . . . . . . . . . . Parts Lost 1 | . . . . . . . . . 1 Power . | . . . . . . . . . . Propulsion . | . . . . . . . . . . Utility 1 | . . . . . . . . . 1 Weapon . | . . . . . . . . . . Highest Loss Streak 1 | . . . . . . . . . 1 To Critical Strikes . | . . . . . . . . . . Average Backups 3 | . . 1 8 11 1 1 2 2 1 Power . | . . . . . . . . . . Propulsion 1 | . . . 2 3 . . . . . Utility 1 | . . . 3 4 . . 1 1 . Weapon 1 | . . . 2 2 . . 1 1 1 Tool/Special . | . . . . . . . . . . Unused Backups 3 | . . . 1 . 2 . . . . Power . | . . . . . . . . . . Propulsion 1 | . . . 1 . . . . . . Utility . | . . . . . . . . . . Weapon 2 | . . . . . 2 . . . . Tool/Special . | . . . . . . . . . . Average Slot Usage (%) 90 | . 99 94 81 89 84 85 85 86 85 Engine 1 | . 1 . 1 6 2 . . . . Core 9 | . 9 8 7 6 12 13 13 13 13 Treads 8 | . 21 16 . . . . . . . Wheel 3 | . . 1 13 11 . . . . . Flight 1 | . . . . . 4 8 9 9 8 Device 15 | . 26 14 7 6 20 22 21 22 25 Storage 2 | . . 1 7 6 . . . . . Processor 14 | . 3 17 15 13 16 15 13 13 13 Hackware 1 | . . . . 6 2 2 4 4 4 Protection 4 | . 3 7 1 . 4 4 4 4 3 Energy Gun 21 | . 24 25 22 27 7 12 13 13 13 Ballistic Gun 1 | . 7 . . . . . . . . Ballistic Cannon 1 | . . . . . 9 3 . . . Peak Build Rating 126 | 10 19 29 30 48 116 122 122 122 126 Average Rating 46 | 5 15 22 26 41 102 120 121 122 125 On Entrance 61 | . 10 19 29 29 48 115 122 122 122 Avg Prop Armor Cover (%) 4 | . . 9 10 . 19 1 1 1 1 Naked Turns . | . . . . . . . . . . Heaviest Build 229 | 12 23 215 227 229 222 69 59 59 60 Greatest Support 48 | 40 40 40 36 38 43 43 48 48 48 Greatest Overweight (x) 10 | . . 10 10 9 6 1 1 1 1 Average Overweight (x) 2 | . . 1 7 7 . . 1 1 1 Largest Inventory Capacity 32 | 1 1 32 32 32 32 2 2 2 2 Average Capacity 11 | 1 1 5 32 32 2 2 2 2 2 Most Carried 21 | . 1 14 14 19 21 2 2 2 2 Average Carried 5 | . . 1 13 15 1 1 2 2 1 Final Capacity 32 | 1 1 32 32 32 2 2 2 2 2 Final Carried 18 | . 1 14 12 18 2 2 2 2 1 Class Distribution -------------------- 31% | Gunner 14% | Hauler-Gunner 12% | Hauler-Skirmisher 9% | Skirmisher 9% | Scavenger-Gunner 5% | Hauler-Assassin 5% | Scavenger-Skirmisher 5% | Assassin Dominant Class ---------------- Skirmisher | -10/Materials Gunner | -10/Subcaves Hauler-Gunner | -9/Recycling Hauler-Skirmisher | -9/Scraptown Scavenger-Gunner | -6/Factory Scavenger-Skirmisher | -6/Extension Scavenger-Skirmisher | -6/Cetus Commander-Skirmisher | -6/Archives Commander-Skirmisher | -6/Hub_04(d) Resources | -11 -10 -10 -9 -9 -6 -6 -6 -6 -6 ----------- Run | Yrd Mat Sub Rec Scr Fac Ext Cet Arc Hub Matter Collected 2725 | 296 481 196 60 100 1348 200 23 . 21 Remotely 589 | 138 451 . . . . . . . . Salvage Created 4936 | 98 917 640 658 . 791 794 132 239 667 Parts 267 | 7 73 43 29 . 54 27 6 6 22 Haulers Intercepted 5 | . 2 . . . . 1 . . 2 Recyclers Shooed 1 | . . . . . 1 . . . . Parts Field Recycled . | . . . . . . . . . . Retrieved Matter . | . . . . . . . . . . Parts Self-Destructed 9 | . . 9 . . . . . . . Prevented 4 | . . 4 . . . . . . . Parts Restored . | . . . . . . . . . . Kills | -11 -10 -10 -9 -9 -6 -6 -6 -6 -6 ------- Run | Yrd Mat Sub Rec Scr Fac Ext Cet Arc Hub Combat Hostiles Destroyed 83 | . 13 19 3 . 27 12 3 2 4 Guns 51 | . 12 14 3 . 7 7 2 2 4 Cannons 20 | . . . . . 17 3 . . . AOE 6 | . 1 3 . . 2 . . . . Classes Destroyed 16 | 2 7 3 . . 3 1 . . . Worker 6 | . 3 . . . 1 . . . 2 Builder 8 | . 4 . 1 . 3 . . . . Tunneler 4 | 2 2 . . . . . . . . Hauler 5 | . 2 . . . . 1 . . 2 Recycler 4 | 1 3 . . . . . . . . Operator 4 | . 2 . . . 1 1 . . . Turret 2 | . . 2 . . . . . . . Watcher 11 | . 3 . . . 3 1 1 . 3 Swarmer 19 | . 3 5 2 . 7 . . . 2 Grunt 23 | . 10 1 2 . 4 5 . . 1 Sentry 15 | . . 1 2 . 6 4 . 2 . Specialist 2 | . . . . . 2 . . . . Hunter 4 | . . . . . 2 . 1 . 1 Programmer 7 | . . . . . 6 1 . . . Behemoth 2 | . . . . . . 2 . . . Cetus Guard 2 | . . . . . . . 2 . . Subdweller 12 | . . 12 . . . . . . . Thug 1 | . . . . . . . . . 1 Guerrilla 1 | . . . . . . . . . 1 Best Kill Streak 7 | 2 3 6 2 . 7 3 3 2 4 Combat Bots Only 6 | . 2 4 2 . 6 2 2 2 2 Max Kills in Single Turn 3 | 2 1 1 2 . 2 1 1 1 3 Gunslinging 1 | . . . . . 1 . . . . Exploded 1 | . 1 1 . . 1 . . . . Melee . | . . . . . . . . . . Uniques/NPCs Destroyed . | . . . . . . . . . . Combat | -11 -10 -10 -9 -9 -6 -6 -6 -6 -6 -------- Run | Yrd Mat Sub Rec Scr Fac Ext Cet Arc Hub Hostile Shots Fired 493 | . 60 64 4 . 147 78 14 3 123 Missed 179 | . 15 24 1 . 60 33 5 . 41 Hits 314 | . 45 40 3 . 87 45 9 3 82 Projectile 314 | . 45 40 3 . 87 45 9 3 82 AOE 4 | . . 4 . . . . . . . Critical Strikes 12 | . 1 2 . . 2 1 . . 6 Part Disruptions 1 | . . . . . 1 . . . . Damage Taken 5449 | . 687 786 59 . 1059 718 203 92 1845 Core 4094 | . 539 597 46 . 776 549 131 72 1384 Absorbed by Shields 87 | . . . . . . . 87 . . Redirected to Core 3728 | . 464 481 46 . 691 501 131 72 1342 Core Remaining (%) 100 | 100 . . . 100 . . . . . Volleys Fired 430 | 4 165 67 44 . 82 28 9 4 27 Largest 4 | 3 3 3 4 . 4 4 4 3 4 Hottest 333 | 80 135 135 175 . 224 333 333 243 333 Shots Fired 1334 | 12 492 185 133 . 248 110 37 12 105 Gun 1157 | 12 492 185 133 . 120 96 28 12 79 Cannon 177 | . . . . . 128 14 9 . 26 Launcher . | . . . . . . . . . . Special . | . . . . . . . . . . Kinetic 284 | 8 127 8 . . 128 13 . . . Thermal 353 | . 99 . . . 3 97 37 12 105 Explosive . | . . . . . . . . . . Electromagnetic 697 | 4 266 177 133 . 117 . . . . Robot Hit Streak 44 | 3 10 24 9 . 24 44 15 11 13 Robot Miss Streak 5 | 1 5 1 4 . 3 2 2 . 2 Penetration Max . | . . . . . . . . . . Secondary Targets 4 | . . 2 . . 2 . . . . Max Gunslinging Chain 1 | . . 1 . . 1 . . . . Shots Hit Robots 566 | 7 106 120 18 . 137 87 26 11 54 Core Hits 225 | 3 49 37 16 . 55 27 9 6 23 Critical Kills . | . . . . . . . . . . Critical Parts Destroyed . | . . . . . . . . . . Critical Strikes 29 | . 4 2 4 . 7 6 2 . 4 Burn 14 | . 3 . . . . 5 2 . 4 Blast 7 | . . . . . 6 1 . . . Corrupt 4 | . 1 2 . . 1 . . . . Impale 4 | . . . 4 . . . . . . Melee Attacks 35 | . . 9 14 . 12 . . . . Impact . | . . . . . . . . . . Slashing . | . . . . . . . . . . Piercing 35 | . . 9 14 . 12 . . . . Sneak Attacks . | . . . . . . . . . . Combat Hostiles . | . . . . . . . . . . Follow-up Attacks . | . . . . . . . . . . Damage Inflicted 15071 | 90 1863 1703 999 . 4490 2602 821 293 2210 Guns 8634 | 90 1560 1482 156 . 863 2295 593 293 1302 Cannons 4116 | . . . . . 3164 307 228 . 417 Explosions 1532 | . 303 221 54 . 463 . . . 491 Melee 789 | . . . 789 . . . . . . Ramming . | . . . . . . . . . . Kinetic 3925 | 51 442 . . . 3164 268 . . . Thermal 6418 | . 645 221 . . 385 2334 821 293 1719 Explosive 146 | . 14 . 54 . 78 . . . . Electromagnetic 3793 | 39 762 1482 156 . 863 . . . 491 Impact . | . . . . . . . . . . Slashing . | . . . . . . . . . . Piercing 789 | . . . 789 . . . . . . Highest Corruption 29 | . . . . . 5 6 6 6 29 Average Corruption 4 | . . . . . 2 5 6 6 7 Corruption Purged . | . . . . . . . . . . Corruption Blocked . | . . . . . . . . . . Effects 80 | . . . . . 17 37 12 5 9 Message Errors 17 | . . . . . 2 12 1 2 . Matter Fused 15 | . . . . . 7 5 1 2 . Heat Flow Errors 10 | . . . . . 1 4 3 1 1 Energy Discharges 10 | . . . . . 1 5 2 . 2 Parts Rejected 1 | . . . . . . . 1 . . Parts Fused 1 | . . . . . . 1 . . . Data Loss (minor) 12 | . . . . . 3 3 2 . 4 Data Loss (major) 2 | . . . . . . 2 . . . Misfires 4 | . . . . . 2 1 1 . . Alerts 2 | . . . . . . 1 1 . . Weapon Failures 6 | . . . . . 1 3 . . 2 Overload Shots . | . . . . . . . . . . Overflow Damage 470 | . 5 . 236 . 188 . . . 41 Projectiles 198 | . . . . . 162 . . . 36 Explosions 36 | . 5 . . . 26 . . . 5 Melee 236 | . . . 236 . . . . . . Knockbacks 26 | . . . . . 22 4 . . . Impact . | . . . . . . . . . . Kinetic 25 | . . . . . 22 3 . . . Secondary 1 | . . . . . . 1 . . . Self-Inflicted Damage 258 | . 99 . 29 . 26 . . . 104 Shots 6 | . 3 . 1 . 1 . . . 1 Rammed . | . . . . . . . . . . Targets Rammed . | . . . . . . . . . . Kicked . | . . . . . . . . . . Crushed . | . . . . . . . . . . Highest Temperature 374 | . 146 252 72 . 218 374 159 124 142 Average Temperature 46 | . 43 165 30 . 44 82 43 70 12 Received Heat Transfer 1430 | . 321 440 12 . 147 449 13 . 48 Effects 2 | . . . . . . 2 . . . Energy Bleed 2 | . . . . . . 2 . . . Siege Activations . | . . . . . . . . . . Martial Activations . | . . . . . . . . . . Shielding Activations . | . . . . . . . . . . Robots Disrupted . | . . . . . . . . . . Combat Hostiles . | . . . . . . . . . . Robots Corrupted 4 | . . 3 . . 1 . . . . Combat Hostiles 3 | . . 2 . . 1 . . . . Parts Fried 29 | . 3 18 3 . 3 . . . 2 Impact Corruptions . | . . . . . . . . . . Robots Melted 4 | . . . . . . 2 1 . 1 Combat Hostiles 3 | . . . . . . 2 1 . . Parts Melted 18 | . 1 1 . . . 9 3 . 4 Heat Transferred 9452 | . 1595 250 . . 350 3380 1262 407 2208 Parts Sabotaged . | . . . . . . . . . . Parts Stolen . | . . . . . . . . . . Parts Stripped . | . . . . . . . . . . Power Chain Reactions 10 | . 3 4 . . 3 . . . . Alert | -11 -10 -10 -9 -9 -6 -6 -6 -6 -6 ------- Run | Yrd Mat Sub Rec Scr Fac Ext Cet Arc Hub Maximum Alert Level 3 | . 1 . . . 3 2 1 . 2 Low Security (%) 70 | 100 87 . 100 . 46 28 86 100 18 Level 1 17 | . 12 . . . 17 54 13 . 51 Level 2 4 | . . . . . 6 16 . . 30 Level 3 7 | . . . . . 29 . . . . Level 4 . | . . . . . . . . . . Level 5 . | . . . . . . . . . . High Security . | . . . . . . . . . . Max Security . | . . . . . . . . . . Peak Influence 886 | 10 277 . 130 . 886 511 226 164 677 Initial 427 | . . . 100 . . 427 1 32 29 Average 186 | 2 127 . 54 . 341 262 133 115 307 Influence Increases 5627 | 15 1101 390 673 . 1403 519 316 162 1048 Destroy 0b10 Robot/C 1860 | . 260 180 140 . 540 280 140 80 240 Destroy 0b10 Robot/NC 275 | 15 95 . 60 . 40 20 5 . 40 Destroy Leader 380 | . 80 . . . 176 44 20 . 60 Allied During Kill 713 | . . . 63 . 6 139 127 80 298 Successful Hack 174 | . 42 . 19 . 62 32 19 . . Disable Machine 1440 | . 480 . 345 . 330 . . . 285 Destroy Structure 485 | . 99 . 46 . 204 4 5 2 125 Lose Combat Pursuer 300 | . 45 210 . . 45 . . . . Influence Decreases 4890 | 15 827 455 774 108 529 1390 239 158 395 Entered New Map 901 | . . 132 109 108 . 447 2 48 55 Time Decay 2905 | 15 677 323 501 . 509 473 197 90 120 Lost Part 10 | . . . . . . . . . 10 Lost Ally 249 | . . . 89 . 20 20 40 20 60 Purge Threat 825 | . 150 . 75 . . 450 . . 150 Squads Dispatched 27 | . 3 . . . 14 2 2 . 6 Investigation 5 | . 1 . . . 1 1 2 . . Extermination 4 | . . . . . 4 . . . . Reinforcement 10 | . 2 . . . 3 1 . . 4 Assault . | . . . . . . . . . . Garrison 8 | . . . . . 6 . . . 2 Intercept . | . . . . . . . . . . Searches Triggered . | . . . . . . . . . . Construction Impeded 2 | . . . . . 1 . . . 1 Haulers Reinforced 1 | . . . . . . . . . 1 Active Scanning Responses . | . . . . . . . . . . Cargo Convoy Interrupts . | . . . . . . . . . . Stealth | -11 -10 -10 -9 -9 -6 -6 -6 -6 -6 --------- Run | Yrd Mat Sub Rec Scr Fac Ext Cet Arc Hub Distress Signals 8 | . 2 . . . 1 1 1 . 3 Communications Jammed . | . . . . . . . . . . Distress Signals . | . . . . . . . . . . Times Spotted 131 | . 19 27 2 . 33 15 8 3 24 Peak Tracking Total 16 | . 4 5 1 . 6 3 5 1 16 Tactical Retreats 7 | . 3 2 . . 2 . . . . Traps | -11 -10 -10 -9 -9 -6 -6 -6 -6 -6 ------- Run | Yrd Mat Sub Rec Scr Fac Ext Cet Arc Hub Traps Triggered 7 | . 1 1 . . . 4 . . 1 Indirectly 1 | . . . . . . . . . 1 Trap Hack Attempts . | . . . . . . . . . . Triggered . | . . . . . . . . . . Disarmed . | . . . . . . . . . . Reprogrammed . | . . . . . . . . . . Reused . | . . . . . . . . . . Traps Extracted . | . . . . . . . . . . Installed . | . . . . . . . . . . Triggered . | . . . . . . . . . . Machines | -11 -10 -10 -9 -9 -6 -6 -6 -6 -6 ---------- Run | Yrd Mat Sub Rec Scr Fac Ext Cet Arc Hub Machines Disabled 100 | . 32 3 23 . 22 1 . . 19 Max in Single Turn 6 | . 2 2 3 . 4 1 . . 6 Network Hub 1 | . . . . . . . . . 1 Machines Repaired . | . . . . . . . . . . Machines Dismantled . | . . . . . . . . . . Machines Sabotaged . | . . . . . . . . . . Overloaded Fab Kills . | . . . . . . . . . . Hacking | -11 -10 -10 -9 -9 -6 -6 -6 -6 -6 --------- Run | Yrd Mat Sub Rec Scr Fac Ext Cet Arc Hub Machines Accessed 55 | . 8 2 13 8 5 14 3 . 2 Terminals 32 | . 6 . 6 . 2 13 3 . 2 Fabricators 1 | . . . . . 1 . . . . Repair Stations . | . . . . . . . . . . Recycling Units 10 | . 2 . 7 . . 1 . . . Scanalyzers 1 | . . . . . 1 . . . . Garrison Access 1 | . . . . . 1 . . . . Total Hacks 193 | . 24 12 36 59 12 32 11 . 7 Successful 138 | . 16 12 21 59 6 16 4 . 4 Failed 54 | . 7 . 15 . 6 16 7 . 3 Catastrophic 12 | . 2 . 2 . 2 5 1 . . Database Lockouts 1 | . 1 . . . . . . . . Manual 82 | . 24 . 28 . 8 14 1 . 7 Terminals 90 | . 19 . 17 . 6 30 11 . 7 Fabricators 1 | . . . . . 1 . . . . Repair Stations . | . . . . . . . . . . Recycling Units 26 | . 5 . 19 . . 2 . . . Scanalyzers 3 | . . . . . 3 . . . . Garrison Access 2 | . . . . . 2 . . . . Terminal Hacks 94 | . 4 12 1 59 . 13 4 . 1 Record 68 | . . 11 . 52 . 2 3 . . Part Schematic 1 | . . . . . . 1 . . . Robot Analysis 10 | . 3 . . 7 . . . . . Prototype ID Bank 1 | . . . . . . 1 . . . Open Door 7 | . . . . . . 6 1 . . Unreport Threat 6 | . 1 . 1 . . 3 . . 1 Proto ID Catalog 1 | . . 1 . . . . . . . Fabricator Hacks . | . . . . . . . . . . Repair Station Hacks . | . . . . . . . . . . Recycling Unit Hacks 10 | . 2 . 7 . . 1 . . . Report Inventory 10 | . 2 . 7 . . 1 . . . Scanalyzer 2 | . . . . . 2 . . . . Retrieve Study 2 | . . . . . 2 . . . . Garrison Access Hacks . | . . . . . . . . . . Unauthorized Hacks 32 | . 10 . 13 . 4 2 . . 3 Terminals 22 | . 8 . 7 . 2 2 . . 3 Track 1 | . . . . . 1 . . . . Botnet 9 | . 2 . 2 . 1 2 . . 2 Operators 1 | . 1 . . . . . . . . Skim 11 | . 5 . 5 . . . . . 1 Fabricators . | . . . . . . . . . . Repair Stations . | . . . . . . . . . . Recycling Units 8 | . 2 . 6 . . . . . . Reject 8 | . 2 . 6 . . . . . . Scanalyzers . | . . . . . . . . . . Garrison Access 2 | . . . . . 2 . . . . Broadcast 1 | . . . . . 1 . . . . Reprogram 1 | . . . . . 1 . . . . Data Cores Recovered 1 | . . . . . 1 . . . . Used . | . . . . . . . . . . Hacking Detections 34 | . 7 . 7 . 5 11 2 . 2 Full Trace Events 3 | . . . . . . 1 2 . . Feedback Events . | . . . . . . . . . . Feedback Blocked . | . . . . . . . . . . Robot Schematics Acquired . | . . . . . . . . . . Robots Built . | . . . . . . . . . . Authchips . | . . . . . . . . . . Time . | . . . . . . . . . . Total Robot Build Rating . | . . . . . . . . . . Part Schematics Acquired 1 | . . . . . . 1 . . . Parts Built . | . . . . . . . . . . Authchips . | . . . . . . . . . . Time . | . . . . . . . . . . Total Part Build Rating . | . . . . . . . . . . Part Studies Acquired 2 | . . . . . 2 . . . . Parts Repaired . | . . . . . . . . . . Time . | . . . . . . . . . . Parts Recycled . | . . . . . . . . . . Recycled Matter . | . . . . . . . . . . Retrieved Matter . | . . . . . . . . . . Retrieved Components . | . . . . . . . . . . Parts Scanalyzed . | . . . . . . . . . . Part Schematics Acquired . | . . . . . . . . . . Parts Damaged . | . . . . . . . . . . Bothacking | -11 -10 -10 -9 -9 -6 -6 -6 -6 -6 ------------ Run | Yrd Mat Sub Rec Scr Fac Ext Cet Arc Hub Used RIF Installer . | . . . . . . . . . . Robots Hacked . | . . . . . . . . . . Non-combat . | . . . . . . . . . . Combat . | . . . . . . . . . . Robot Hacks Applied . | . . . . . . . . . . Relay Couplers Released . | . . . . . . . . . . Fabnet Peak Effective % . | . . . . . . . . . . Robots Rewired 30 | . . . 24 . . 6 . . . Allies Hacked . | . . . . . . . . . . Hacks Repelled . | . . . . . . . . . . Allies | -11 -10 -10 -9 -9 -6 -6 -6 -6 -6 -------- Run | Yrd Mat Sub Rec Scr Fac Ext Cet Arc Hub Total Allies 41 | . . . 24 . 1 11 5 . . Largest Group 23 | . . . 23 . 1 10 12 12 10 Highest-Rated Group 816 | . . . 286 . 32 431 816 816 621 Highest-Rated Ally 159 | . . . 34 . 32 159 159 159 96 Total Orders 2 | . . . 1 . . . 1 . . ROAM 1 | . . . 1 . . . . . . GUARD 1 | . . . . . . . 1 . . Ally Attacks 164 | . . . 17 . 3 28 41 22 53 Total Damage 3936 | . . . 237 . 72 523 888 497 1719 Kills 22 | . . . 4 . . 3 4 2 9 Allies Corrupted 1 | . . . . . . . . . 1 Allies Melted . | . . . . . . . . . . Intel | -11 -10 -10 -9 -9 -6 -6 -6 -6 -6 ------- Run | Yrd Mat Sub Rec Scr Fac Ext Cet Arc Hub Active Infowar (turns) 19112 | 9 2963 5917 2300 3180 2565 1312 427 187 252 Sensors 2825 | . . . . . 2177 441 . . 207 Terrain 19112 | 9 2963 5917 2300 3180 2565 1312 427 187 252 Robot Analysis Total 10 | . 3 . . 7 . . . . . Derelict Logs Recovered 3 | . . 1 . 2 . . . . . Drone Launches . | . . . . . . . . . . Drone Recoveries . | . . . . . . . . . . Exploration | -11 -10 -10 -9 -9 -6 -6 -6 -6 -6 ------------- Run | Yrd Mat Sub Rec Scr Fac Ext Cet Arc Hub Turns Passed 19186 | 83 2963 5917 2300 3180 2565 1312 427 187 252 Spaces Moved 7875 | 39 1286 2150 940 1476 1025 491 223 80 165 Core 43 | 2 . . . . 41 . . . . Treads 3079 | 37 1286 1756 . . . . . . . Legs . | . . . . . . . . . . Wheels 2818 | . . 394 940 1476 8 . . . . Hover . | . . . . . . . . . . Flight 1935 | . . . . . 976 491 223 80 165 Fastest Speed 40 | 50 160 120 165 165 40 40 80 80 80 Average Speed 152 | 154 160 169 185 201 77 79 80 80 80 Slowest Speed 280 | 160 160 210 210 225 280 80 80 80 80 Overloaded Moves . | . . . . . . . . . . Propulsion Burnouts . | . . . . . . . . . . Robots Hopped . | . . . . . . . . . . Potential Cave-ins 2 | . . . . . . . . . 2 Cave-ins Triggered . | . . . . . . . . . . Exploration Rate (%) 65 | 6 98 94 99 85 16 79 72 81 27 Regions Visited 9 Branch Regions 7 Pre-discovered Areas 7 | . . . 3 4 . . . . . Known Exits Taken 6 | . . 1 1 . 1 1 1 1 . Unknown Exits Taken 3 | 1 1 . . 1 . . . . . Scrap Searched 23 | . . 15 . 8 . . . . . Spaces Dug 25 | . . 5 . . 19 . . . 1 Terrain Destroyed 623 | . 110 14 64 . 260 6 1 . 168 Melee 13 | . . 5 . . 8 . . . . Projectile 54 | . . . . . 31 6 1 . 16 AOE 556 | . 110 9 64 . 221 . . . 152 Terrain Rammed . | . . . . . . . . . . Walls Destroyed . | . . . . . . . . . . Machines Disabled . | . . . . . . . . . . Actions | -11 -10 -10 -9 -9 -6 -6 -6 -6 -6 --------- Run | Yrd Mat Sub Rec Scr Fac Ext Cet Arc Hub Total 14032 | 50 1823 4280 1381 1679 2618 1342 448 193 218 Wait 5030 | . 313 1976 157 185 1410 675 188 101 25 Move 7866 | 38 1285 2149 939 1475 1024 490 222 79 165 Hop . | . . . . . . . . . . Pick Up 24 | . 3 11 2 4 4 . . . . Fast Attach 51 | 8 7 5 4 4 14 8 1 . . Attach 15 | . . 2 2 1 8 1 . . 1 Detach 18 | . 1 . 1 3 9 4 . . . Swap 29 | . 3 11 2 5 8 . . . . Drop 62 | . 10 9 5 2 30 6 . . . Fire 430 | 4 165 67 44 . 82 28 9 4 27 Melee 35 | . . 9 14 . 12 . . . . Ram . | . . . . . . . . . . Kick . | . . . . . . . . . . Crush . | . . . . . . . . . . Escape Stasis 45 | . . . . . . 45 . . . Rewire 251 | . . . 198 . . 53 . . . Trap . | . . . . . . . . . . Miscellaneous 176 | . 36 41 13 . 17 32 28 9 . Route ------- -11/Scrapyard -10/Materials (discovered 5 exits: [*Mat x3] / [*Min] / *Sub) -10/Subcaves (discovered 3 exits: *Mat x2 / *Rec) -9/Recycling (discovered 2 exits: *Fac / *Scr) -9/Scraptown (discovered 2 exits: *Fac x2) -6/Factory -6/Extension (discovered 3 exits: *Fac x2 / *Cet) -6/Cetus -6/Archives (discovered 3 exits: Fac / *Hub x2) -6/Hub_04(d) History --------- Turn | Location | Event 1 | -11/Scrapyard | Upgraded with Propulsion slot (x1) 1 | -11/Scrapyard | Upgraded with Utility slot (x1) 1 | -11/Scrapyard | Upgraded with Weapon slot (x2) 20 | -11/Scrapyard | Discovered new exit (range 15) 84 | -11/Scrapyard | Entered Materials 304 | -10/Materials | Build established: Skirmisher 335 | -10/Materials | Discovered new exit (range 14) 400 | -10/Materials | Discovered new exit (range 12) 722 | -10/Materials | Reached level 2 726 | -10/Materials | Upgraded with Utility slot (x1) 772 | -10/Materials | Discovered new exit (range 10) 1106 | -10/Materials | Central database locked down 1214 | -10/Materials | Discovered new exit (range 8) 1255 | -10/Materials | Discovered new exit (range 16) 1471 | -10/Materials | Learned Storage stockpile data 1562 | -10/Materials | Learned 2 Storage zone layouts 1613 | -10/Materials | Learned location of 2 exits from Subcaves 1624 | -10/Materials | Learned location of 2 exits from Materials 1670 | -10/Materials | Learned location of 1 exit from Recycling 1890 | -10/Materials | Reached level 3 1893 | -10/Materials | Upgraded with Utility slot (x1) 2216 | -10/Materials | Build established: Gunner 3047 | -10/Materials | Entered Subcaves 3048 | -10/Subcaves | Identified exit to Recycling 3048 | -10/Subcaves | Identified exit to Materials 3049 | -10/Subcaves | Reached level 4 3062 | -10/Subcaves | Upgraded with Utility slot (x1) 3145 | -10/Subcaves | Learned Materials stockpile data 4233 | -10/Subcaves | Disturbed a concealed Subdweller 4739 | -10/Subcaves | Visited 4L-MR0's lab 4991 | -10/Subcaves | Discovered exit to Materials (range 11) 5026 | -10/Subcaves | Core integrity fell below 50% 6430 | -10/Subcaves | Shifting Twisted Machinery released Sub. Laser 6523 | -10/Subcaves | Shifting Twisted Machinery released Scrap Shield 6639 | -10/Subcaves | Disturbed a concealed Subdweller 6818 | -10/Subcaves | Visited Clippyterm 6823 | -10/Subcaves | Learned Factory trap positions 7563 | -10/Subcaves | Reached level 5 7682 | -10/Subcaves | Upgraded with Power slot (x1) 8406 | -10/Subcaves | Build established: Hauler-Assassin 8729 | -10/Subcaves | Build established: Hauler-Gunner 8840 | -10/Subcaves | Found Flightbrick 8964 | -10/Subcaves | Entered Recycling 8965 | -9/Recycling | Identified exit to Scraptown 9129 | -9/Recycling | Build established: Hauler-Assassin 9552 | -9/Recycling | Reached level 6 9750 | -9/Recycling | Scanned before Scraplab entrance 9994 | -9/Recycling | Build established: Hauler-Gunner 10283 | -9/Recycling | Discovered new exit (range 15) 10355 | -9/Recycling | Identified exit to Factory 10410 | -9/Recycling | Learned Storage emergency access door positions 10456 | -9/Recycling | Learned Materials interactive machine intel 10492 | -9/Recycling | Learned Storage emergency access door positions 10534 | -9/Recycling | Learned Materials stockpile data 10540 | -9/Recycling | Learned location of Zion (-7) 10554 | -9/Recycling | Learned Storage trap positions 10610 | -9/Recycling | Learned Storage stockpile data 10652 | -9/Recycling | Learned 2 Materials zone layouts 10733 | -9/Recycling | Reached level 7 10748 | -9/Recycling | Upgraded with Utility slot (x1) 10748 | -9/Recycling | Upgraded with Weapon slot (x1) 11228 | -9/Recycling | Entered Scraplab 11264 | -9/Recycling | Entered Scraptown 11734 | -9/Scraptown | Discovered new exit (range 11) 11767 | -9/Scraptown | Heard Great Nut preacher, LISTEN AND RECITE! 11767 | -9/Scraptown | Scanned Subdweller tech in exchange for log data 11773 | -9/Scraptown | Learned location of Extension (-6) 11776 | -9/Scraptown | Learned location of Warlord (-5) 12013 | -9/Scraptown | Visited UFD Registry 12013 | -9/Scraptown | Registered with UFD as "Carbonface" 12058 | -9/Scraptown | Visited A0-MCA Data Center 12072 | -9/Scraptown | Given a B- rating by A0-MCA 12078 | -9/Scraptown | Found A0-MCA's Component Scanner 12138 | -9/Scraptown | Visited Analyses Database 12210 | -9/Scraptown | Delivered Scrap Shield to a Scientist 12372 | -9/Scraptown | Build established: Hauler-Skirmisher 12388 | -9/Scraptown | Visited Scrapoid Pod Storage 12430 | -9/Scraptown | Visited Research Penetration Think Tank 12496 | -9/Scraptown | Visited Sword Containment 12540 | -9/Scraptown | Visited Junk Repository 12628 | -9/Scraptown | Visited Curators Association 12808 | -9/Scraptown | Visited Assassins FH 12876 | -9/Scraptown | Visited The Evicted 12912 | -9/Scraptown | Visited Cave Peace 12998 | -9/Scraptown | Visited Bundlers 13332 | -9/Scraptown | Visited Cyclists 13365 | -9/Scraptown | Entered Cyclist Reading Room 14355 | -9/Scraptown | Met Optimus 14355 | -9/Scraptown | Reached level 8 14355 | -9/Scraptown | Accepted into 0bPrime 14355 | -9/Scraptown | Upgraded with Propulsion slot (x1) 14437 | -9/Scraptown | Discovered new exit (range 5) 14444 | -9/Scraptown | Entered Factory 14445 | -6/Factory | Loaded intel: 108 trap records 14446 | -6/Factory | Reached level 9 14458 | -6/Factory | Upgraded with Propulsion slot (x1) 14460 | -6/Factory | Attached Flightbrick, gained temporary slots: Utility x3 14480 | -6/Factory | Upgraded with Power slot (x1) 14761 | -6/Factory | Build established: Scout 15118 | -6/Factory | Build established: Assassin 15310 | -6/Factory | Garrison activated, responded to threat 15627 | -6/Factory | Reached level 10 15637 | -6/Factory | Core integrity fell below 50% 15964 | -6/Factory | Build established: Scavenger-Gunner 16089 | -6/Factory | Reached level 11 16257 | -6/Factory | Reached level 12 16417 | -6/Factory | Upgraded with Utility slot (x1) 16688 | -6/Factory | Discovered new exit (range 20) 16701 | -6/Factory | Identified exit to Extension 17009 | -6/Factory | Entered Extension 17011 | -6/Extension | Reached level 13 17012 | -6/Extension | Upgraded with Propulsion slot (x1) 17539 | -6/Extension | Reached level 14 17566 | -6/Extension | Rescued a captive Derelict 17739 | -6/Extension | Spotted B-75 Beast 17757 | -6/Extension | Destroyed B-75 Beast 17765 | -6/Extension | Spotted B-75 Beast 17776 | -6/Extension | Destroyed B-75 Beast 17789 | -6/Extension | Discovered new exit (range 14) 17817 | -6/Extension | Identified exit to Factory 17873 | -6/Extension | Reached level 15 17878 | -6/Extension | Rescued A7 17890 | -6/Extension | Build established: Scavenger-Skirmisher 17903 | -6/Extension | Rescued a captive Derelict 17910 | -6/Extension | Rescued a captive Derelict 18253 | -6/Extension | Rescued a captive Derelict 18268 | -6/Extension | Discovered exit to Factory (range 10) 18269 | -6/Extension | Discovered new exit (range 6) 18316 | -6/Extension | Identified exit to Cetus 18321 | -6/Extension | Entered Cetus 18321 | -6/Cetus | Accompanied by 10 allies (A7) 18326 | -6/Cetus | Acquired a Cetus Manufacturing Module code from A7 18338 | -6/Cetus | Spotted Cetus Guard 18338 | -6/Cetus | Spotted Cetus Guard 18347 | -6/Cetus | Destroyed Cetus Guard 18348 | -6/Cetus | Spotted Cetus Guard 18349 | -6/Cetus | Spotted Cetus Guard 18356 | -6/Cetus | Allies destroyed Cetus Guard 18358 | -6/Cetus | Allies destroyed Cetus Guard 18364 | -6/Cetus | Destroyed Cetus Guard 18435 | -6/Cetus | Escorted A7 to Cetus Mainframe 18435 | -6/Cetus | Reached level 16 18460 | -6/Cetus | Discovered new exit (range 16) 18482 | -6/Cetus | Started Cetus Manufacturing Module 18507 | -6/Cetus | Manufactured an Enhanced Grunt 18532 | -6/Cetus | Manufactured an Enhanced Grunt 18557 | -6/Cetus | Manufactured an Enhanced Grunt 18582 | -6/Cetus | Manufactured an Enhanced Grunt 18607 | -6/Cetus | Manufactured an Enhanced Grunt 18707 | -6/Cetus | Identified exit to Archives 18748 | -6/Cetus | Entered Archives 18748 | -6/Archives | Accompanied by 12 allies (A7) 18750 | -6/Archives | Reached level 17 18753 | -6/Archives | Received a hacking code to weaken MAIN.C 18793 | -6/Archives | Discovered exit to Factory (range 18) 18795 | -6/Archives | Unable to access archive contents 18797 | -6/Archives | Discovered new exit (range 14) 18803 | -6/Archives | Discovered new exit (range 18) 18852 | -6/Archives | Identified exit to Hub_04(d) 18905 | -6/Archives | Build established: Commander-Skirmisher 18935 | -6/Archives | Entered Hub_04(d) 18935 | -6/Hub_04(d) | Accompanied by 10 allies 18977 | -6/Hub_04(d) | Reached level 18 18980 | -6/Hub_04(d) | Upgraded with Utility slot (x1) 19146 | -6/Hub_04(d) | Network Hub disabled 19156 | -6/Hub_04(d) | Spotted Lightning 19156 | -6/Hub_04(d) | Spotted Lightning 19157 | -6/Hub_04(d) | Spotted Lightning 19160 | -6/Hub_04(d) | System corruption reached 10% 19163 | -6/Hub_04(d) | Spotted Lightning 19164 | -6/Hub_04(d) | Reached level 19 19172 | -6/Hub_04(d) | Spotted Lightning 19174 | -6/Hub_04(d) | Spotted Lightning 19183 | -6/Hub_04(d) | Core integrity fell below 20% 19187 | -6/Hub_04(d) | Destroyed by Lightning with EMDS Last Messages --------------- 19174_ EMDS Slug penetrates Wall. 19175_ System corrupted: Hvy. Beamcaster failed to cycle. 19175_ EMDS Slug penetrates Wall. 19175_ Penetrated by EMDS Slug. 19176_ Slug penetrates Wall. 19177_ EMDS Slug penetrates Wall. 19177_ Penetrated by EMDS Slug. 19178_ Imp. Light Armor Plating destroyed. 19179_ Penetrated by EMDS Slug. 19179_ EMDS Slug penetrates Wall. 19179_ Penetrated by EMDS Slug. 19179_ Slug penetrates Wall. 19180_ Penetrated by EMDS Slug. 19181_ Wall collapses. 19181_ Penetrated by EMDS Slug. 19181_ EMDS Slug penetrates Wall. 19181_ G-50 Soldier destroyed. 19181_ Penetrated by EMDS Slug. 19183_ Slug penetrates Wall. 19183_ Penetrated by EMDS Slug. Map ----- +----------------------------------------------------+ | # ##################?###?#?#?????????? | | # ##############?#?####?#### ???????? | | # # ###################??? ????????? | | # # # ########?##???????"??? | | # %* ] # # ##### # ????????? | | # # # ! ##### ? ? ??"????? | | # # # #####?" " #? ?"????? | | # # + " " " " ##### "G" ?#? ""?? ?? | | #####+##### " ##### """ / ? ?"""??? | | b+ " " " " ##### ? ?? | | [ g" ########""####+##+#### | | k ################## ? #??? | | #####/##"###u#### ## ! ##+###? | | # ## #### ## # ?? | | # " " ##A#### ## Y +? # | | # " " ##g#### ## # ??# | | # " " ## #######+##+######## # ? ? | | # !! ##k####### u / ? "?# | | # ! ##g####### ###########" ## # " ? | | # ! ##/####### ############Y ## " # | | # # t # ### # ;;;;;# ;"##### | | ########### # ### ;hY ; ; #? | | ##### ##### #*"## h;;;;;;;;;;;" #? | | ##### ##### u /]]## h; ; ## | | ##### ##### #]%##!!! ;; ; ## | | ##### ##### " "" #]]##!@! i;! ; #? | | ##### # " "" #k]##*%[%*;; ; ## | | ########### # g!;;;;;%;; !%* ; ## | | ########### " " # ;; !=! = ## | | #################### ;;; " ## | | ?###?############### # =% ;;; " #? | | #?#?##?############# # *; ; " ## | | ##??#########?######tg#;;%%; ; / " #? | | #???###?############ *; ; " ## | | ????################ kh =%[;;;;;;;;;;;""" ### | | ???#########?########/#;#=#hY h ; #? | | ??#?### """ ##### ! k Y# i ; #??#? | | ????#??? "T" #?### ! = # ;#######??? | | ???#??# ? + + ;o "#?####??#? | | ?????## ? # ### """T""" # "###?#????? | | ?????## ?? #?############k "# ? ?#??? | | ???#??#?? # ##?###? ?#"""""""# ??""??? | | ?????#?###??#? ??? ? ?? ???k? ????? | | ?????#??##??#? ? ? ?? ?? ? ??kt ????? | | ????????#????? ?? ? ? ?? ??? ?? ? ????? | | ??????#??#????+?##?#??? ?"?##?#???? ??????? | | ?????#???????????#???#???####?##?????????????? | | ??????#??? "?? + ?? ? ? ??#?#?#??????????? | | ????????? ? ??????#?#??? ? ?Y#???#??????????? | | ???????????? ? ????? "?????#?????#?#???????? | +----------------------------------------------------+ Best States ------------- Heat Dissipation 141 Energy Generation 52 Energy Capacity 480 Matter Stores 350 Matter Capacity 350 Sight Range 17 Robot Scan Range 36 Terrain Scan Range 20 Terrain Scan Density 310 Additional Mass Support 9 Armor Coverage 800 Phase Shifting 5 Evasion (%) 62 Targeting Accuracy 12 Recoil Reduction 2 Particle Charging 20 Kinecelleration 30 Offensive Hacking 22 Defensive Hacking 10 Item Schematics ----------------- Force Lance | -6/Extension | Hacked Robot Schematics ------------------ None Fabricated ------------ Nothing Repaired ---------- Nothing Studied --------- Magnetic Acceleration Cannon | -6/Factory | Hacked Lgt. Fission Core | -6/Factory | Hacked Alien Tech Used ----------------- None Achievements -------------- None Challenges ------------ None RPGLIKE | -11 -10 -10 -9 -9 -6 -6 -6 -6 -6 --------- Run | Yrd Mat Sub Rec Scr Fac Ext Cet Arc Hub Levels Raised 18 | . 2 2 2 1 4 3 1 1 2 XP Earned 30341 | 3000 4170 1900 3616 900 7130 3338 2455 1084 2748 XP Spent 29855 | 2990 3000 2980 2950 800 6745 4510 1455 750 3675 Upgrades 75 | 11 7 8 3 1 13 14 3 3 12 Power Slot 2 | . . 1 . . 1 . . . . Propulsion Slot 4 | 1 . . . 1 1 1 . . . Utility Slot 7 | 1 2 1 1 . 1 . . . 1 Weapon Slot 3 | 2 . . 1 . . . . . . Core Integrity 16 | . . . . . . 4 1 . 11 Heat Dissipation 13 | 2 2 1 1 . 3 3 1 . . Energy Generation 1 | . 1 . . . . . . . . Energy Storage 1 | . 1 . . . . . . . . Matter Storage 1 | . . . . . 1 . . . . Mass Support 3 | . . . . . 2 . 1 . . Inventory Capacity 2 | 1 . 1 . . . . . . . Sight Range 1 | . . . . . 1 . . . . Sensor Range 10 | 1 . 4 . . 1 1 . 3 . Terrain Scan Density 3 | 3 . . . . . . . . . Ranged Accuracy 4 | . 1 . . . 2 1 . . . Hack Attack % 2 | . . . . . . 2 . . . Hack Defense % 2 | . . . . . . 2 . . . Protomatter Created 1376 | . 365 408 109 . 161 185 105 . 43 Integrity Restored 3617 | . 694 826 257 . 324 720 610 186 . Core 2694 | . 539 596 47 . 324 720 412 56 . Parts 923 | . 155 230 210 . . . 198 130 . Protomatter Decayed 640 | . 125 143 185 . 53 . 91 . 43 Game ------ Seed SubatomicNeutrinoScanner Manual? 0 Play Time 03:13:50 Cumulative 89.0 hours Start 2025.11.18 @ 18:26:58 End 2025.11.18 @ 21:32:42 Sessions 1 Manual Loads 0 Difficulty Rogue Special Mode Winter2019/RPGLIKE Game No. 80 Rogue 80 Adventurer 0 Explorer 0 Win Type - Total 0 Types 0/0/0/0/0/0/0/0/0/0 Lore% 60 Gallery% 39 Achievement% 36 Wizard Run 0 Options --------- Layout 0 ASCII 0 Keyboard 0 Movement Mouse Keybinds 0 Fullscreen 2 Font 24/Smallcaps Map View 76x50 Zoom Use 0% Tactical HUD 1 Map Filters NONE Filters NONE Steam 1 RUN: 7e980965-4151-4e38-83f6-4eec81a0e987